bitfinex-derivatives/quotes_BTCF0:USTF0_20210104
["timestamp","ask_amount","ask_price","bid_price","bid_amount"]
[1609767573229,0.10589,31186.0,31173.0,3.6153]
[1609767574038,0.10589,31186.0,31175.0,0.13632608]
[1609767576125,0.13632608,31176.0,31175.0,0.13632608]
[1609767577827,0.13632608,31176.0,31170.0,4.3124]
[1609767578230,0.13632608,31171.0,31167.0,0.13632608]
[1609767578628,0.13632608,31171.0,31165.0,0.12252]
[1609767579028,0.13632608,31171.0,31169.0,4.8457]
[1609767580529,0.13632608,31171.0,31164.0,0.13632608]
[1609767580730,0.13632608,31171.0,31162.0,0.11568]
[1609767580931,0.13632608,31171.0,31164.0,4.7866]
[1609767582130,0.09841,31179.0,31164.0,4.7866]
[1609767582131,0.13632608,31165.0,31164.0,4.7866]
[1609767582931,0.13632608,31165.0,31156.0,0.13632608]
[1609767584133,0.13632608,31157.0,31156.0,0.13632608]
[1609767584534,0.13632608,31157.0,31148.0,4.049]
[1609767584734,4.3001,31153.0,31128.0,2.10658845]
[1609767584935,4.3001,31153.0,31129.0,0.0954]
[1609767585237,4.3001,31153.0,31129.0,0.2276]
[1609767585636,4.3001,31153.0,31129.0,0.8291]
[1609767586238,4.3001,31153.0,31152.0,0.13632608]
[1609767586438,0.13632608,31157.0,31152.0,0.13632608]
[1609767587641,0.04112608,31157.0,31152.0,0.13632608]
[1609767587842,0.01959944,31166.0,31150.0,0.13184]
[1609767588241,0.01959944,31166.0,31165.0,0.13632608]
[1609767589642,0.01960786,31167.0,31165.0,0.13632608]
[1609767589841,0.01960786,31167.0,31150.0,0.13184]
[1609767590241,0.01960786,31167.0,31153.0,0.13632608]
[1609767591042,0.01960786,31167.0,31150.0,0.13184]
[1609767591243,0.76088599,31169.0,31150.0,0.13184]
[1609767591442,4.8412,31159.0,31137.0,5.1366]
[1609767591642,0.10245,31162.0,31129.0,0.1322]
[1609767591845,4.508,31150.0,31129.0,0.1322]
[1609767592042,4.508,31150.0,31128.0,2.02048881]
[1609767592242,4.508,31150.0,31138.0,0.13632608]
[1609767592443,4.508,31150.0,31138.0,0.25786608]
[1609767592643,0.01961467,31161.0,31138.0,0.25786608]
[1609767594244,0.60246831,31158.0,31138.0,0.25786608]
[1609767594444,0.60246831,31158.0,31147.0,0.13632608]
[1609767595144,0.60240336,31157.0,31147.0,0.13632608]
[1609767596344,0.13632608,31148.0,31147.0,0.13632608]
[1609767599046,0.13632608,31148.0,31138.0,0.12154]
[1609767599445,0.13632608,31148.0,31131.0,5.2172]
[1609767600045,0.13632608,31148.0,31113.0,2.23558675]
[1609767600246,4.7931,31144.0,31113.0,7.17328675]
[1609767600446,4.7931,31144.0,31127.0,0.13632608]
[1609767600647,4.7931,31144.0,31127.0,0.24630608]
[1609767601446,4.7931,31144.0,31127.0,0.10998]
[1609767602347,0.13632608,31128.0,31127.0,0.10998]
[1609767604552,0.66242608,31128.0,31127.0,0.10998]
[1609767605553,0.66242608,31128.0,31113.0,0.13632608]
[1609767606355,0.13632608,31114.0,31113.0,0.13632608]
[1609767606556,0.68952608,31114.0,31113.0,0.13632608]
[1609767607755,0.13632608,31114.0,31101.0,2.04592614]
[1609767607956,4.7007,31102.0,31096.0,2.04641609]
[1609767608456,4.7007,31102.0,31101.0,0.13632608]
[1609767608657,4.7007,31102.0,31101.0,0.25130608]
[1609767608855,4.7007,31102.0,31101.0,0.11498]
[1609767610357,0.13632608,31102.0,31101.0,0.11498]
[1609767610858,4.17252608,31102.0,31101.0,0.11498]
[1609767611961,0.13632608,31102.0,31100.0,0.13632608]
[1609767612558,0.10922608,31102.0,31100.0,0.13632608]
[1609767612859,0.6159,31101.0,31100.0,0.13632608]
[1609767616363,0.15904,31114.0,31100.0,0.13632608]
[1609767616563,4.5138,31111.0,31097.0,0.14101]
[1609767617166,4.5138,31111.0,31100.0,0.13632608]
[1609767619066,0.13632608,31101.0,31100.0,0.13632608]
[1609767619468,3.80822608,31101.0,31100.0,0.13632608]
[1609767620568,0.13632608,31101.0,31100.0,0.13632608]
[1609767621870,5.00802608,31101.0,31100.0,0.13632608]
[1609767623773,0.13632608,31101.0,31100.0,0.13632608]
[1609767625975,0.13632608,31101.0,31097.0,0.14101]
[1609767626177,5.0958,31098.0,31076.0,5.2435]
[1609767626377,0.13632608,31101.0,31072.0,2.08271052]
[1609767626578,0.09771,31114.0,31072.0,2.08271052]
[1609767626778,4.8989,31084.0,31072.0,2.18353052]
[1609767626979,0.14148,31125.0,31072.0,2.18353052]
[1609767627182,0.01946336,31127.0,31072.0,2.18353052]
[1609767627380,5.2454,31076.0,31072.0,2.18353052]
[1609767627582,0.15847,31102.0,31072.0,0.10082]
[1609767627780,3.7416,31088.0,31072.0,0.10082]
[1609767629081,3.7416,31088.0,31073.0,0.13632608]
[1609767629284,3.7416,31088.0,31072.0,0.10082]
[1609767631086,3.7416,31088.0,31073.0,0.13632608]
[1609767633089,0.13632608,31074.0,31073.0,0.13632608]
[1609767633489,3.7416,31088.0,31072.0,0.10082]
[1609767633989,3.7416,31088.0,31053.0,0.0977]
[1609767635193,3.7416,31088.0,31073.0,0.13632608]
[1609767635392,0.11647,31095.0,31073.0,0.13632608]
[1609767635593,0.00985234,31096.0,31073.0,0.23974608]
[1609767636195,4.6639,31093.0,31073.0,0.23974608]
[1609767636393,4.77683,31093.0,31073.0,0.23974608]
[1609767636793,4.77683,31093.0,31073.0,0.10342]
[1609767637193,0.13632608,31074.0,31073.0,0.10342]
[1609767638095,0.13632608,31074.0,31067.0,0.13632608]
[1609767639197,0.11633,31085.0,31067.0,0.13632608]
[1609767639198,0.13632608,31068.0,31067.0,0.13632608]
[1609767639996,0.11633,31085.0,31065.0,4.5861]
[1609767641196,0.11633,31085.0,31066.0,0.13632608]
[1609767642502,0.11293,31093.0,31063.0,0.13566]
[1609767642701,0.15847,31102.0,31073.0,3.6185]
[1609767642899,0.02895356,31103.0,31073.0,3.71723]
[1609767643301,0.02895356,31103.0,31094.0,0.13632608]
[1609767644705,0.00972692,31112.0,31092.0,3.7696]
[1609767645306,0.15565692,31112.0,31097.0,0.13632608]
[1609767646007,0.14593,31112.0,31097.0,0.13632608]
[1609767647307,0.13632608,31098.0,31097.0,0.13632608]
[1609767647707,0.29322608,31098.0,31097.0,0.13632608]
[1609767649408,0.29322608,31098.0,31097.0,4.86272608]
[1609767652113,0.29322608,31098.0,31097.0,0.13632608]
[1609767653215,0.1569,31098.0,31097.0,0.13632608]
[1609767653617,0.13632608,31100.0,31097.0,0.13632608]
[1609767653816,0.13632608,31100.0,31096.0,4.3421]
[1609767653817,0.09953,31098.0,31096.0,4.3421]
[1609767654218,0.14593,31112.0,31096.0,4.3421]
[1609767654417,0.14593,31112.0,31096.0,0.13044]
[1609767654617,0.00974008,31118.0,31104.0,4.099]
[1609767655218,0.00974996,31123.0,31104.0,4.099]
[1609767655417,0.00974996,31123.0,31117.0,0.13632608]
[1609767655918,0.00974996,31123.0,31104.0,4.099]
[1609767656118,0.15954996,31123.0,31104.0,4.099]
[1609767657225,0.1498,31123.0,31104.0,4.099]
[1609767657423,0.1498,31123.0,31117.0,0.13632608]
[1609767658419,0.1498,31123.0,31104.0,4.099]
[1609767659319,0.1498,31123.0,31118.0,0.13632608]
[1609767661119,0.02922963,31126.0,31118.0,0.13632608]
[1609767661320,0.13632608,31119.0,31118.0,0.13632608]
[1609767668636,0.13632608,31119.0,31110.0,0.15334]
[1609767668836,0.28092608,31119.0,31103.0,0.10955]
[1609767669035,0.28092608,31119.0,31102.0,3.8972]
[1609767669435,0.1446,31119.0,31108.0,0.13632608]
[1609767670337,0.17402652,31119.0,31108.0,0.13632608]
[1609767671437,0.13632608,31109.0,31108.0,0.13632608]
[1609767673037,0.13632608,31109.0,31102.0,3.8972]
[1609767673437,0.10241,31111.0,31102.0,3.8972]
[1609767673938,0.13632608,31103.0,31102.0,4.03352608]
[1609767674938,0.13632608,31103.0,31102.0,3.8972]
[1609767675141,0.13632608,31103.0,31073.0,2.10690215]
[1609767675340,0.13632608,31103.0,31070.0,2.55513871]
[1609767675341,0.13632608,31103.0,31093.0,3.7226]
[1609767676041,0.15973,31104.0,31094.0,0.13632608]
[1609767677043,0.00990027,31103.0,31094.0,0.13632608]
[1609767677343,0.00990027,31103.0,31083.0,4.0184]
[1609767677541,0.00990027,31103.0,31067.0,0.0974]
[1609767677743,3.6128,31095.0,31070.0,3.8453]
[1609767678142,0.00990027,31103.0,31088.0,0.13632608]
[1609767678143,0.12261,31097.0,31088.0,0.13632608]
[1609767678542,4.5654,31089.0,31080.0,0.16078]
[1609767679343,0.12261,31097.0,31080.0,0.16078]
[1609767679946,0.00991115,31096.0,31080.0,0.16078]
[1609767680144,0.13632608,31081.0,31080.0,0.16078]
[1609767680347,0.13632608,31081.0,31075.0,0.13632608]
[1609767680545,0.13632608,31081.0,31073.0,0.15159]
[1609767681345,0.13632608,31081.0,31053.0,2.2343352]
[1609767681745,0.13632608,31081.0,31053.0,2.1380352]
[1609767682146,4.2468,31070.0,31066.0,0.13632608]
[1609767684148,0.13632608,31067.0,31066.0,0.13632608]
[1609767686851,0.13632608,31067.0,31053.0,4.5126]
[1609767687553,0.13632608,31067.0,31043.0,2.23353741]
[1609767687753,4.93762608,31067.0,31043.0,2.23353741]
[1609767688155,4.8013,31067.0,31063.0,0.13632608]
[1609767688656,4.8013,31067.0,31054.0,0.1569]
[1609767689057,5.0956,31055.0,31054.0,0.1569]
[1609767690058,5.23192608,31055.0,31054.0,0.1569]
[1609767690258,5.23192608,31055.0,31040.0,2.13717631]
[1609767690460,5.23192608,31055.0,31039.0,0.13632608]
[1609767692159,5.0956,31055.0,31045.0,0.24562608]
[1609767692360,0.1369,31062.0,31045.0,0.24562608]
[1609767692560,5.0556,31061.0,31045.0,0.24562608]
[1609767694060,0.13632608,31046.0,31045.0,0.24562608]
[1609767694260,0.13632608,31046.0,31045.0,0.1093]
[1609767696364,0.88012608,31046.0,31045.0,0.1093]
[1609767697263,0.88012608,31046.0,31034.0,0.13632608]
[1609767698066,0.13632608,31035.0,31034.0,0.13632608]
[1609767701772,0.13632608,31035.0,31019.0,2.1280676]
[1609767702173,4.5778,31032.0,31019.0,2.1280676]
[1609767702774,0.13632608,31020.0,31019.0,2.1280676]
[1609767703174,5.04472608,31020.0,31019.0,2.1280676]
[1609767703374,5.04472608,31020.0,31019.0,2.0108676]
[1609767703977,5.04472608,31020.0,31001.0,6.08379619]
[1609767704376,0.13632608,31020.0,31001.0,2.32289619]
[1609767704576,4.1734,31014.0,31001.0,2.32289619]
[1609767704777,4.1734,31014.0,31003.0,0.13632608]
[1609767705179,4.1734,31014.0,31003.0,0.15306]
[1609767706782,0.13632608,31008.0,31005.0,0.13632608]
[1609767706982,0.13632608,31008.0,31003.0,0.15306]
[1609767707182,0.14061,31026.0,31003.0,0.15306]
[1609767707985,0.10591,31034.0,31003.0,0.15306]
[1609767708184,0.10591,31034.0,31004.0,0.0969]
[1609767708384,0.10591,31034.0,31005.0,0.0978]
[1609767708884,3.8156,31038.0,31022.0,0.13632608]
[1609767709085,3.8156,31038.0,31022.0,0.25235608]
[1609767709985,3.8156,31038.0,31022.0,0.11603]
[1609767710985,0.13632608,31023.0,31022.0,0.25235608]
[1609767711789,0.13632608,31023.0,31022.0,0.11603]
[1609767714095,0.13632608,31023.0,31005.0,0.0978]
[1609767714893,0.13632608,31023.0,31022.0,0.13632608]
[1609767715498,0.13632608,31023.0,31020.0,4.8362]
[1609767717100,0.13632608,31023.0,30979.0,2.10122724]
[1609767717302,0.13632608,31023.0,31011.0,3.8943]
[1609767718101,0.13632608,31023.0,31009.0,0.15766]
[1609767718701,0.5353,31022.0,30998.0,3.8081]
[1609767718901,0.5353,31022.0,31008.0,0.13632608]
[1609767719402,0.5353,31022.0,31002.0,0.1244]
[1609767721000,0.5353,31022.0,31004.0,0.13632608]
[1609767721400,0.14712,31027.0,31004.0,0.13632608]
[1609767721601,4.6859,31018.0,31004.0,0.13632608]
[1609767721803,4.78898,31018.0,31004.0,0.13632608]
[1609767722603,4.78898,31018.0,30991.0,0.0961]
[1609767723004,4.78898,31018.0,30993.0,0.13632608]
[1609767723203,4.78898,31018.0,30993.0,0.27237608]
[1609767724906,4.78898,31018.0,31006.0,0.13632608]
[1609767727009,4.78898,31018.0,31013.0,0.13632608]
[1609767727209,4.78898,31018.0,31005.0,0.097]
[1609767727407,0.10308,31018.0,31005.0,0.097]
[1609767727609,0.12461,31020.0,31005.0,0.097]
[1609767729112,0.12461,31020.0,31016.0,0.13632608]
[1609767729912,0.14712,31027.0,31012.0,0.14871]
[1609767730112,0.10466,31034.0,31012.0,0.14871]
[1609767730514,4.1735,31038.0,31012.0,0.14871]
[1609767730914,0.2947,31040.0,31012.0,0.14871]
[1609767731114,0.13632608,31020.0,31019.0,0.13632608]
[1609767731513,0.14878,31032.0,31018.0,0.0975]
[1609767732116,0.10298,31032.0,31016.0,4.3643]
[1609767732315,0.01307215,31055.0,31016.0,4.3643]
[1609767732515,0.12229,31049.0,31016.0,4.3643]
[1609767732716,0.12229,31049.0,31012.0,0.24561]
[1609767732916,0.12229,31049.0,31025.0,3.7474]
[1609767733116,0.12229,31049.0,31048.0,0.13632608]
[1609767734115,0.30242651,31056.0,31048.0,0.13632608]
[1609767734317,0.2986,31056.0,31048.0,0.13632608]
[1609767735018,0.13632608,31049.0,31048.0,0.13632608]
[1609767735425,0.13632608,31049.0,31041.0,0.11885]
[1609767737031,0.13632608,31050.0,31048.0,0.13632608]
[1609767738323,0.01325894,31063.0,31048.0,0.13632608]
[1609767738525,0.14347934,31064.0,31048.0,0.29506608]
[1609767738526,0.12488,31064.0,31048.0,0.29506608]
[1609767739125,0.12488,31064.0,31055.0,0.13632608]
[1609767741132,0.13632608,31056.0,31055.0,0.13632608]
[1609767741632,0.13632608,31056.0,31051.0,4.1161]
[1609767743134,0.01346212,31060.0,31053.0,0.13632608]
[1609767744137,0.00397282,31054.0,31053.0,0.13632608]
[1609767745136,0.1402989,31054.0,31053.0,0.13632608]
[1609767745340,0.13632608,31054.0,31053.0,0.13632608]
[1609767749448,0.14030698,31054.0,31053.0,0.13632608]
[1609767749847,0.14030698,31054.0,31043.0,4.1883]
[1609767751149,0.0039809,31054.0,31047.0,0.13632608]
[1609767751352,0.56808865,31056.0,31047.0,0.13632608]
[1609767751551,0.0136703,31057.0,31047.0,0.13632608]
[1609767752552,0.5697856,31059.0,31052.0,5.0594]
[1609767752953,0.57006169,31060.0,31052.0,5.15788]
[1609767753151,0.57006169,31060.0,31059.0,0.13632608]
[1609767753351,0.57006169,31060.0,31059.0,0.66952608]
[1609767753552,0.57006169,31060.0,31059.0,0.77089608]
[1609767753752,0.52386169,31060.0,31059.0,0.77089608]
[1609767754152,0.26386169,31060.0,31059.0,0.77089608]
[1609767754754,0.68619481,31069.0,31059.0,0.77089608]
[1609767755153,0.68619481,31069.0,31068.0,0.13632608]
[1609767756255,0.8236441,31071.0,31068.0,0.13632608]
[1609767757155,0.68731802,31071.0,31067.0,4.8894]
[1609767757756,0.68731802,31071.0,31070.0,0.13632608]
[1609767758157,0.68771283,31072.0,31070.0,0.13632608]
[1609767758356,0.68771283,31072.0,31070.0,0.23617608]
[1609767759059,1.09140852,31077.0,31070.0,0.23617608]
[1609767759060,0.13632608,31077.0,31070.0,0.23617608]
[1609767759657,4.9578,31079.0,31070.0,0.09985]
[1609767759857,4.9578,31079.0,31059.0,0.10137]
[1609767760059,5.06714,31079.0,31055.0,5.3842]
[1609767760261,0.10934,31079.0,31052.0,0.09848]
[1609767760462,4.3335,31071.0,31041.0,4.42945]
[1609767760661,0.15628,31072.0,31033.0,0.0978]
[1609767760860,4.3964,31062.0,31041.0,0.097]
[1609767761060,0.15628,31072.0,31041.0,0.097]
[1609767761460,0.15628,31072.0,31041.0,5.4703]
[1609767762363,0.68282524,31063.0,31041.0,5.4703]
[1609767762561,0.79704524,31063.0,31041.0,5.4703]
[1609767762762,0.79704524,31063.0,31046.0,0.13632608]
[1609767763465,0.11422,31063.0,31046.0,0.13632608]
[1609767764167,3.642,31059.0,31046.0,0.13632608]
[1609767764767,3.642,31059.0,31053.0,0.13632608]
[1609767765469,3.642,31059.0,31041.0,0.097]
[1609767766067,3.642,31059.0,31033.0,4.4973]
[1609767766869,3.642,31059.0,31048.0,0.13632608]
[1609767767970,3.642,31059.0,31040.0,0.10395]
[1609767768772,3.642,31059.0,31048.0,0.13632608]
[1609767769374,3.642,31059.0,31040.0,0.10395]
[1609767769375,0.68166695,31062.0,31040.0,0.10395]
[1609767769574,4.5083,31044.0,31031.0,0.10011]
[1609767769774,0.11008,31049.0,31031.0,0.10011]
[1609767769974,5.0703,31032.0,31031.0,0.10011]
[1609767770176,0.15063,31042.0,31031.0,0.10011]
[1609767770577,0.7016,31040.0,31031.0,0.10011]
[1609767770778,0.13632608,31032.0,31023.0,0.13659]
[1609767771377,4.7471,31036.0,31023.0,0.13659]
[1609767771878,4.7471,31036.0,31020.0,0.1061]
[1609767772778,0.13632608,31021.0,31020.0,0.1061]
[1609767773177,0.13632608,31021.0,31009.0,0.13632608]
[1609767773980,4.1306,31013.0,31009.0,0.13632608]
[1609767774381,0.13632608,31021.0,30989.0,2.13238544]
[1609767774583,4.3072,31003.0,30989.0,2.26826544]
[1609767774783,4.3072,31003.0,31002.0,0.13632608]
[1609767774983,4.3072,31003.0,31002.0,0.28451608]
[1609767775184,0.13632608,31004.0,30989.0,2.26826544]
[1609767775384,4.8594,31003.0,30989.0,2.26826544]
[1609767775585,0.14508,31004.0,30989.0,0.13588]
[1609767775784,4.4359,30990.0,30989.0,0.13588]
[1609767775983,4.4359,30990.0,30981.0,2.13279011]
[1609767776385,4.4359,30990.0,30965.0,2.13387778]
[1609767776586,0.15593,30997.0,30965.0,2.28566778]
[1609767776788,0.13632608,30966.0,30965.0,2.28566778]
[1609767777388,0.10016,30989.0,30965.0,1.88346778]
[1609767777586,3.9578,30966.0,30965.0,1.88346778]
[1609767777787,0.10016,30989.0,30965.0,0.15179]
[1609767777986,4.4822,30988.0,30965.0,0.15179]
[1609767778387,0.10016,30989.0,30965.0,0.15179]
[1609767778586,4.9273,30974.0,30965.0,0.15179]
[1609767778787,0.13632608,30966.0,30965.0,0.15179]
[1609767779189,0.71872608,30966.0,30965.0,0.15179]
[1609767779788,0.71872608,30966.0,30946.0,4.947]
[1609767780188,0.5824,30966.0,30946.0,4.947]
[1609767780391,0.14169,30975.0,30931.0,2.3286487]
[1609767780589,4.0902,30957.0,30931.0,2.4885787]
[1609767780990,0.13632608,30953.0,30948.0,0.13632608]
[1609767781190,4.0902,30957.0,30948.0,0.13632608]
[1609767781390,4.0902,30957.0,30948.0,0.26586608]
[1609767781591,0.14169,30975.0,30948.0,0.26586608]
[1609767781789,4.6755,30958.0,30948.0,0.26586608]
[1609767782991,4.6755,30958.0,30948.0,0.12954]
[1609767783490,4.6755,30958.0,30951.0,0.13632608]
[1609767783690,4.1117,30968.0,30951.0,0.13632608]
[1609767784090,0.14169,30975.0,30951.0,0.13632608]
[1609767784291,0.66362723,30981.0,30948.0,0.12954]
[1609767784493,0.16,30982.0,30948.0,0.12954]
[1609767784690,4.8741,30983.0,30948.0,0.12954]
[1609767785491,4.8285,30983.0,30982.0,0.13632608]
[1609767785691,0.54643534,31000.0,30982.0,0.29719608]
[1609767786093,4.0274,30989.0,30982.0,0.29719608]
[1609767786292,4.0274,30989.0,30982.0,0.16087]
[1609767787495,0.13632608,30987.0,30983.0,0.13632608]
[1609767788399,0.13632608,30987.0,30982.0,0.16087]
[1609767788597,5.3575,30958.0,30930.0,0.16614861]
[1609767788826,0.11815,30969.0,30925.0,2.10142926]
[1609767788997,3.9583,30937.0,30925.0,2.22124926]
[1609767789600,0.14288,30962.0,30926.0,0.0976]
[1609767789798,0.13632608,30942.0,30936.0,0.27960608]
[1609767790497,5.0897,30953.0,30936.0,0.27960608]
[1609767790699,0.15955,30955.0,30936.0,0.27960608]
[1609767791598,0.15955,30955.0,30954.0,0.13632608]
[1609767791799,0.13632608,30960.0,30954.0,0.13632608]
[1609767792102,0.14288,30962.0,30954.0,0.13632608]
[1609767792501,0.14288,30962.0,30955.0,4.5565]
[1609767792901,0.11815,30969.0,30955.0,4.5565]
[1609767793101,0.54358434,30980.0,30955.0,4.5565]
[1609767793702,0.15097,30987.0,30955.0,4.5565]
[1609767793903,0.53930582,30993.0,30955.0,4.5565]
[1609767794102,0.53930582,30993.0,30986.0,0.13632608]
[1609767795305,0.53930582,30993.0,30979.0,0.5992]
[1609767795706,0.77545104,30995.0,30979.0,0.5992]
[1609767795707,0.12832,30995.0,30979.0,0.5992]
[1609767796105,0.12832,30995.0,30977.0,0.107]
[1609767796305,0.12832,30995.0,30982.0,3.9029]
[1609767796505,0.12832,30995.0,30993.0,0.13632608]
[1609767797505,0.12832,30995.0,30982.0,3.9029]
[1609767797905,0.13632608,31000.0,30982.0,3.9029]
[1609767798106,0.12432,31004.0,30982.0,3.9029]
[1609767798507,0.12432,31004.0,30992.0,0.13632608]
[1609767800209,0.12432,31004.0,30992.0,0.68412608]
[1609767800508,0.12432,31004.0,31002.0,0.13632608]
[1609767801212,0.12432,31004.0,31002.0,0.1343532]
[1609767803216,0.13632608,31005.0,31002.0,0.1343532]
[1609767807322,0.54783068,31026.0,30998.0,3.8352]
[1609767808524,0.54887857,31028.0,30998.0,3.8352]
[1609767809326,5.26257568,31035.0,30998.0,3.8352]
[1609767809327,0.55017788,31030.0,31015.0,0.13632608]
[1609767810728,0.55017788,31030.0,31021.0,4.47880462]
[1609767811334,0.55017788,31030.0,31029.0,0.13632608]
[1609767812129,0.55248006,31040.0,31021.0,4.47880462]
[1609767812327,0.55248006,31040.0,31021.0,4.47683305]
[1609767813330,0.5539406,31047.0,31039.0,0.13632608]
[1609767815333,0.71457351,31046.0,31038.0,5.0591]
[1609767816230,0.15848,31046.0,31038.0,5.0591]
[1609767817329,0.15848,31046.0,31045.0,0.13632608]
[1609767819032,0.15848,31046.0,31034.0,0.15813]
[1609767819432,0.13632608,31035.0,31027.0,0.10256]
[1609767819633,0.13632608,31035.0,31014.0,4.2523]
[1609767819833,0.29313608,31035.0,31014.0,4.2523]
[1609767820933,3.8992,31016.0,30988.0,4.4016]
[1609767821235,0.29313608,31035.0,30969.0,2.10163898]
[1609767821435,4.4446,31005.0,30982.0,0.0974]
[1609767821835,4.4446,31005.0,30975.0,0.1916]
[1609767822034,0.11429,31018.0,30975.0,0.1916]
[1609767822035,0.15944,31011.0,30975.0,0.1916]
[1609767822235,4.6758,31000.0,30975.0,0.34183]
[1609767822635,4.6758,31000.0,30975.0,0.15023]
[1609767822834,5.0365,30998.0,30975.0,0.15023]
[1609767823034,0.13101,30998.0,30975.0,0.15023]
[1609767823233,4.0361,30992.0,30975.0,0.15023]
[1609767823440,0.13632608,30978.0,30976.0,0.13632608]
[1609767823633,0.13632608,30978.0,30975.0,0.15023]
[1609767824033,4.4817,30982.0,30975.0,0.15023]
[1609767825435,4.4817,30982.0,30981.0,0.13632608]
[1609767828938,0.1546,30987.0,30981.0,0.13632608]
[1609767829139,0.13101,30998.0,30981.0,0.13632608]
[1609767829440,0.13101,30998.0,30994.0,0.13632608]
[1609767829640,4.6943,31002.0,30994.0,0.13632608]
[1609767831443,0.13632608,30995.0,30994.0,0.13632608]
[1609767831644,0.27350608,30995.0,30994.0,0.13632608]
[1609767831845,0.84790608,30995.0,30974.0,0.12841]
[1609767832045,0.84790608,30995.0,30967.0,0.11632]
[1609767832446,0.84790608,30995.0,30965.0,4.5025]
[1609767833449,0.13632608,30980.0,30979.0,0.13632608]
[1609767833853,0.29610608,30980.0,30979.0,0.13632608]
[1609767834349,0.15978,30980.0,30979.0,0.13632608]
[1609767834951,0.11843,30988.0,30979.0,0.13632608]
[1609767835550,0.11843,30988.0,30987.0,0.13632608]
[1609767837651,0.27350608,30995.0,30987.0,0.13632608]
[1609767838050,0.13718,30995.0,30987.0,0.13632608]
[1609767838252,0.55581965,31001.0,30987.0,0.13632608]
[1609767839453,0.55581965,31001.0,31000.0,0.13632608]
[1609767839854,3.6972,31004.0,31000.0,0.13632608]
[1609767840254,0.55650362,31005.0,31000.0,0.13632608]
[1609767840855,0.50860362,31005.0,31000.0,0.13632608]
[1609767841055,0.13632608,31008.0,31000.0,0.13632608]
[1609767841256,0.55866829,31015.0,30995.0,3.6898]
[1609767841655,0.55866829,31015.0,31014.0,0.13632608]
[1609767842257,0.10266829,31015.0,31014.0,0.13632608]
[1609767842657,0.67034269,31020.0,31014.0,0.13632608]
[1609767842857,0.67034269,31020.0,31009.0,5.3503]
[1609767843459,0.67070722,31025.0,31009.0,5.3503]
[1609767843658,0.67070722,31025.0,31024.0,0.13632608]
[1609767845162,0.67000589,31030.0,31024.0,0.13632608]
[1609767845661,0.67000589,31030.0,31029.0,0.13632608]
[1609767845863,0.66997771,31033.0,31029.0,0.13632608]
[1609767846264,0.66997771,31033.0,31018.0,4.5165]
[1609767847465,1.14311541,31033.0,31018.0,4.5165]
[1609767847665,0.13632608,31027.0,31026.0,0.13632608]
[1609767847866,0.23662608,31027.0,31026.0,0.13632608]
[1609767848671,0.90442471,31027.0,31026.0,0.13632608]
[1609767849470,0.23662608,31027.0,31026.0,0.13632608]
[1609767850171,0.23662608,31027.0,31026.0,0.0377494]
[1609767850172,1.3756239,31027.0,31026.0,0.0377494]
[1609767850371,1.3756239,31027.0,31008.0,0.12782]
[1609767850773,1.3756239,31027.0,31006.0,4.4863]
[1609767851174,0.90245584,31027.0,30967.0,0.2852]
[1609767851373,0.09684,31020.0,30992.0,5.5275]
[1609767851573,0.5888,31019.0,30999.0,0.12811]
[1609767851775,0.5888,31019.0,31005.0,0.13632608]
[1609767851974,0.09684,31020.0,30999.0,0.12811]
[1609767852175,5.1601,31014.0,30999.0,0.12811]
[1609767852376,0.09684,31020.0,30999.0,0.12811]
[1609767852975,0.09684,31020.0,30995.0,3.6114]
[1609767854377,0.09684,31020.0,31001.0,0.13632608]
[1609767854778,0.66350729,31007.0,31001.0,0.13632608]
[1609767854977,0.78941729,31007.0,31001.0,0.13632608]
[1609767855780,0.12591,31007.0,31001.0,0.13632608]
[1609767855979,0.12591,31007.0,30991.0,0.15409]
[1609767856379,0.13632608,30999.0,30991.0,0.15409]
[1609767856780,0.79204196,31007.0,30991.0,0.15409]
[1609767857984,0.66626912,31005.0,30991.0,0.15409]
[1609767858381,0.13632608,31002.0,31000.0,0.13632608]
[1609767859481,0.13632608,31002.0,30989.0,4.8863]
[1609767860381,0.13632608,30991.0,30989.0,4.8863]
[1609767861583,0.14396,30998.0,30989.0,4.8863]
[1609767862484,0.13632608,30995.0,30984.0,0.13141]
[1609767862685,0.13632608,30995.0,30976.0,3.8814]
[1609767863989,0.14396,30998.0,30976.0,3.8814]
[1609767864189,0.14396,30998.0,30976.0,3.99752]
[1609767864388,0.14396,30998.0,30997.0,0.13632608]
[1609767864589,0.66551194,31000.0,30997.0,0.13632608]
[1609767865191,0.66551194,31000.0,30993.0,0.13398]
[1609767865492,0.66469493,31002.0,30993.0,0.13398]
[1609767866393,0.35279493,31002.0,31001.0,0.13632608]
[1609767866593,0.81432634,31011.0,31001.0,5.67407608]
[1609767868194,0.81750609,31023.0,31001.0,5.67407608]
[1609767868393,0.81750609,31023.0,31022.0,0.13632608]
[1609767868694,0.81090609,31023.0,31022.0,0.13632608]
[1609767869295,0.13632608,31024.0,31022.0,0.13632608]
[1609767869896,0.13632608,31024.0,31011.0,0.10106]
[1609767870295,4.51452608,31024.0,31011.0,0.10106]
[1609767870695,4.3782,31024.0,31011.0,0.10106]
[1609767870895,4.3782,31024.0,31001.0,0.15495]
[1609767871095,0.13632608,31009.0,31008.0,0.13632608]
[1609767871298,0.13632608,31009.0,31001.0,0.15495]
[1609767871497,0.13632608,31009.0,30970.0,2.32933568]
[1609767871698,0.13632608,31009.0,30984.0,5.1978]
[1609767873103,0.25807,31012.0,30993.0,0.13632608]
[1609767873302,0.0187422,31006.0,30993.0,0.13632608]
[1609767873500,0.5617,31005.0,30984.0,5.1978]
[1609767873801,0.12971,31005.0,30982.0,0.1478]
[1609767874001,4.2468,31004.0,30982.0,0.1478]
[1609767875104,0.01871777,31001.0,30986.0,0.13632608]
[1609767876403,0.5729971,30998.0,30986.0,0.13632608]
[1609767876601,0.6733771,30998.0,30986.0,0.13632608]
[1609767877101,0.13632608,30987.0,30986.0,0.13632608]
[1609767877605,0.01867515,30996.0,30986.0,0.13632608]
[1609767878506,0.01862036,30998.0,30986.0,0.13632608]
[1609767879106,0.01862036,30998.0,30994.0,0.13632608]
[1609767879707,0.13632608,31002.0,30994.0,0.13632608]
[1609767879910,0.57350468,31008.0,30994.0,0.13632608]
[1609767880608,0.0187399,31006.0,30994.0,0.13632608]
[1609767881208,0.13632608,31005.0,31003.0,0.13632608]